fUST/lending_fUST_20250602
["ID","MTS","AMOUNT","RATE_DAILY","PERIOD"]
[363646356,1748797835819,-430.0,0.00016438,2]
[363646357,1748797835829,-733.18,0.00016438,2]
[363646358,1748797835838,-432.31827173,0.00016438,2]
[363646359,1748797835848,-430.0,0.00016438,2]
[363646360,1748797835858,-430.0,0.00016438,2]
[363646361,1748797835867,-430.0,0.00016438,2]
[363646362,1748797835876,-430.0,0.00016438,2]
[363646363,1748797835886,-430.0,0.00016438,2]
[363646364,1748797835895,-430.0,0.00016438,2]
[363646365,1748797835904,-430.0,0.00016438,2]
[363646366,1748797835915,-430.0,0.00016438,2]
[363646367,1748797835925,-430.0,0.00016438,2]
[363646368,1748797835934,-430.0,0.00016438,2]
[363646369,1748797835943,-430.0,0.00016438,2]
[363646370,1748797835953,-430.0,0.00016438,2]
[363646371,1748797835962,-151.0,0.00016463,2]
[363646372,1748797835972,-500.87155734,0.00016473,2]
[363646373,1748797835981,-506.27078452,0.00016473,2]
[363646374,1748797835991,-500.0,0.00016473,2]
[363646375,1748797836001,-500.0,0.00016473,2]
[363646376,1748797836010,-500.0,0.00016473,2]
[363646377,1748797836020,-500.0,0.00016473,2]
[363646378,1748797836029,-500.0,0.00016473,2]
[363646379,1748797836038,-344.58229376,0.00016473,2]
[363646380,1748797836048,-153.38429643,0.00016473,2]
[363646381,1748797836057,-500.0,0.00016473,2]
[363646382,1748797836066,-500.0,0.00016473,2]
[363646383,1748797836076,-500.0,0.00016473,2]
[363646384,1748797836086,-500.37460371,0.00016473,2]
[363646385,1748797836095,-224.23945448,0.00016473,2]
[363646386,1748797836106,-503.63052869,0.00016473,2]
[363646387,1748797836116,-500.0,0.00016473,2]
[363646388,1748797836126,-500.0,0.00016473,2]
[363646389,1748797836136,-500.0,0.00016473,2]
[363646390,1748797836146,-255.0,0.000165,2]
[363646391,1748797836157,-500.0,0.0001653,2]
[363646392,1748797836168,-3341.85567457,0.00016612,2]
[363646393,1748797836178,-430.0,0.00016712,2]
[363646394,1748797836188,-430.0,0.00016712,2]
[363646395,1748797836198,-206.41,0.00016712,2]
[363646396,1748797836207,-642.99,0.00016712,2]
[363646397,1748797836217,-430.0,0.00016712,2]
[363646398,1748797836227,-430.0,0.00016712,2]
[363646399,1748797836236,-494.92551303,0.00016712,2]
[363646400,1748797836246,-430.0,0.00016712,2]
[363646401,1748797836256,-430.0,0.00016712,2]
[363646402,1748797836266,-430.0,0.00016712,2]
[363646403,1748797836276,-786.52,0.00016712,2]
[363646404,1748797836285,-430.0,0.00016712,2]
[363646405,1748797836295,-430.0,0.00016712,2]
[363646406,1748797836304,-874.47,0.00016712,2]
[363646407,1748797836314,-430.0,0.00016712,2]
[363646408,1748797836324,-430.0,0.00016712,2]
[363646409,1748797836334,-430.0,0.00016712,2]
[363646410,1748797836344,-918.9,0.00016712,2]
[363646411,1748797836354,-430.0,0.00016712,2]
[363646412,1748797836364,-430.0,0.00016712,2]
[363646413,1748797836374,-430.0,0.00016712,2]
[363646414,1748797836384,-430.0,0.00016712,2]
[363646415,1748797836393,-430.0,0.00016712,2]
[363646416,1748797836402,-430.0,0.00016712,2]
[363646417,1748797836412,-485.16,0.00016712,2]
[363646418,1748797836422,-430.0,0.00016712,2]
[363646419,1748797836432,-2076.33,0.00016712,2]
[363646420,1748797836442,-641.66,0.00016712,2]
[363646421,1748797836452,-430.0,0.00016712,2]
[363646422,1748797836463,-430.0,0.00016712,2]
[363646423,1748797836473,-555.60141404,0.00016712,2]
[363646424,1748797836484,-733.18,0.00016712,2]
[363646425,1748797836494,-430.0,0.00016712,2]
[363646426,1748797836504,-430.0,0.00016712,2]
[363646427,1748797836517,-430.0,0.00016712,2]
[363646428,1748797836527,-430.0,0.00016712,2]
[363646429,1748797836537,-430.0,0.00016712,2]
[363646430,1748797836547,-430.0,0.00016712,2]
[363646431,1748797836559,-430.0,0.00016712,2]
[363646432,1748797836569,-500.0,0.00016838,2]
[363646433,1748797836580,-3283.61779209,0.000169,2]
[363646434,1748797836590,-430.26681816,0.00016986,2]
[363646435,1748797836600,-642.99,0.00016986,2]
[363646436,1748797836610,-430.0,0.00016986,2]
[363646437,1748797836726,-430.0,0.00016986,2]
[363646438,1748797836737,-786.52,0.00016986,2]
[363646439,1748797836748,-430.0,0.00016986,2]
[363646440,1748797836758,-430.0,0.00016986,2]
[363646441,1748797836768,-874.47,0.00016986,2]
[363646442,1748797836778,-430.0,0.00016986,2]
[363646443,1748797836787,-430.0,0.00016986,2]
[363646444,1748797836797,-430.0,0.00016986,2]
[363646445,1748797836806,-918.9,0.00016986,2]
[363646446,1748797836815,-430.0,0.00016986,2]
[363646447,1748797836825,-430.0,0.00016986,2]
[363646448,1748797836835,-430.0,0.00016986,2]
[363646449,1748797836845,-430.0,0.00016986,2]
[363646450,1748797836855,-2804.6,0.00016986,2]
[363646451,1748797836865,-2804.6,0.00016986,2]
[363646452,1748797836875,-430.0,0.00016986,2]
[363646453,1748797836885,-430.0,0.00016986,2]
[363646454,1748797836895,-2006.5012853,0.00016986,2]
[363646521,1748797838670,-430.0,0.00016438,2]
[363646523,1748797838680,-430.0,0.00016438,2]
[363646525,1748797838690,-430.0,0.00016712,2]
[363646527,1748797838699,-69.8287147,0.00016986,2]
[363646529,1748797838709,-641.66,0.00016986,2]
[363646531,1748797838718,-430.0,0.00016986,2]
[363646533,1748797838728,-430.0,0.00016986,2]
[363646535,1748797838737,-733.18,0.00016986,2]
[363646537,1748797838747,-430.0,0.00016986,2]
[363646539,1748797838756,-430.0,0.00016986,2]
[363646541,1748797838766,-430.0,0.00016986,2]
[363646543,1748797838775,-430.0,0.00016986,2]
[363646545,1748797838785,-430.0,0.00016986,2]
[363646547,1748797838795,-430.0,0.00016986,2]
[363646549,1748797838804,-1000.0,0.00017021,2]
[363646551,1748797838813,-1000.0,0.00017021,2]
[363646553,1748797838823,-1000.96381212,0.00017021,2]
[363646555,1748797838831,-1000.0,0.00017021,2]
[363646557,1748797838841,-503.93213778,0.00017021,2]
[363646559,1748797838850,-500.0,0.00017021,2]
[363646561,1748797838859,-1000.0,0.00017021,2]
[363646563,1748797838868,-1000.0,0.00017021,2]
[363646565,1748797838877,-1000.0,0.00017021,2]
[363646567,1748797838887,-560.12847907,0.00017136,2]
[363646569,1748797838896,-500.0,0.00017136,2]
[363646571,1748797838905,-3283.61779182,0.00017141,2]
[363646572,1748797838915,-500.0,0.00017146,2]
[363646573,1748797838924,-500.0,0.00017146,2]
[363646574,1748797838933,-500.0,0.00017146,2]
[363646575,1748797838943,-502.47601941,0.00017146,2]
[363646576,1748797838952,-506.02040442,0.00017146,2]
[363646577,1748797838961,-444.58726838,0.00017146,2]
[363646578,1748797838970,-565.92719307,0.00017177,2]
[363646579,1748797838979,-500.0,0.00017177,2]
[363646580,1748797838989,-500.0,0.00017177,2]
[363646581,1748797838998,-160.0,0.00017236,2]
[363646582,1748797839008,-500.0,0.00017236,2]
[363646583,1748797839017,-642.99,0.0001726,2]
[363646584,1748797839026,-430.0,0.0001726,2]
[363646585,1748797839036,-430.0,0.0001726,2]
[363646586,1748797839045,-786.52,0.0001726,2]
[363646587,1748797839054,-430.0,0.0001726,2]
[363646588,1748797839063,-430.0,0.0001726,2]
[363646589,1748797839072,-874.47,0.0001726,2]
[363646590,1748797839081,-430.0,0.0001726,2]
[363646591,1748797839094,-430.0,0.0001726,2]
[363646592,1748797839103,-430.0,0.0001726,2]
[363646593,1748797839112,-918.9,0.0001726,2]
[363646595,1748797839122,-430.0,0.0001726,2]
[363646597,1748797839131,-430.0,0.0001726,2]
[363646599,1748797839141,-430.0,0.0001726,2]
[363646601,1748797839151,-430.0,0.0001726,2]
[363646603,1748797839160,-430.0,0.0001726,2]
[363646605,1748797839171,-430.0,0.0001726,2]
[363646607,1748797839181,-2076.33,0.0001726,2]
[363646609,1748797839191,-641.66,0.0001726,2]
[363646611,1748797839201,-430.0,0.0001726,2]
[363646614,1748797839211,-733.18,0.0001726,2]
[363646616,1748797839221,-316.41932258,0.0001726,2]
[363646617,1748797839230,-429.10000069,0.0001726,2]
[363646619,1748797839240,-430.0,0.0001726,2]
[363646621,1748797839250,-430.0,0.0001726,2]
[363646624,1748797839260,-430.0,0.0001726,2]
[363646626,1748797839269,-500.0,0.00017267,2]
[363646628,1748797839278,-500.0,0.00017267,2]
[363646630,1748797839288,-500.0,0.00017267,2]
[363646632,1748797839297,-171.19974362,0.00017267,2]
[363646634,1748797839306,-503.28249496,0.00017267,2]
[363646636,1748797839315,-500.0,0.00017267,2]
[363646638,1748797839325,-3283.61779182,0.00017383,2]
[363646640,1748797839334,-165.42858455,0.00017384,2]
[363646642,1748797839343,-642.99,0.00017534,2]
[363646644,1748797839353,-430.0,0.00017534,2]
[363646646,1748797839363,-430.0,0.00017534,2]
[363646648,1748797839374,-786.52,0.00017534,2]
[363646650,1748797839384,-430.0,0.00017534,2]
[363646652,1748797839393,-430.0,0.00017534,2]
[363646654,1748797839402,-874.47,0.00017534,2]
[363646656,1748797839411,-430.0,0.00017534,2]
[363646658,1748797839422,-430.0,0.00017534,2]
[363646660,1748797839431,-430.0,0.00017534,2]
[363646662,1748797839440,-918.9,0.00017534,2]
[363646663,1748797839449,-430.0,0.00017534,2]
[363646666,1748797839459,-430.0,0.00017534,2]
[363646668,1748797839468,-430.0,0.00017534,2]
[363646669,1748797839478,-430.0,0.00017534,2]
[363646670,1748797839487,-162.50576746,0.00017534,2]
[363646671,1748797839498,-430.0,0.00017534,2]
[363646672,1748797839508,-2076.33,0.00017534,2]
[363646674,1748797839520,-641.66,0.00017534,2]
[363646675,1748797839530,-430.0,0.00017534,2]
[363646677,1748797839539,-733.18,0.00017534,2]
[363646679,1748797839548,-430.0,0.00017534,2]
[363646681,1748797839558,-430.0,0.00017534,2]
[363646683,1748797839568,-458.89,0.00017534,2]
[363646685,1748797839577,-1500.0,0.00017568,2]
[363646687,1748797839587,-500.0,0.00017568,2]
[363646689,1748797839598,-3283.61779182,0.00017624,2]
[363646690,1748797839607,-541.47,0.0001769,3]
[363646691,1748797839617,-502.34771245,0.000177,2]
[363646692,1748797839626,-500.0,0.000177,2]
[363646693,1748797839635,-500.0,0.00017784,2]
[363646694,1748797839645,-2461.32,0.00017798,3]
[363646695,1748797839655,-1230.66,0.00017798,3]
[363646696,1748797839665,-615.34,0.00017798,3]
[363646697,1748797839675,-307.66,0.00017798,3]
[363646698,1748797839685,-160.0,0.00017807,2]
[363646699,1748797839695,-642.99,0.00017808,2]
[363646701,1748797839704,-430.0,0.00017808,2]
[363646703,1748797839714,-430.0,0.00017808,2]
[363646705,1748797839724,-786.52,0.00017808,2]
[363646707,1748797839734,-430.0,0.00017808,2]
[363646708,1748797839743,-430.0,0.00017808,2]
[363646710,1748797839752,-874.47,0.00017808,2]
[363646712,1748797839763,-430.0,0.00017808,2]
[363646714,1748797839773,-430.0,0.00017808,2]
[363646716,1748797839782,-430.0,0.00017808,2]
[363646718,1748797839791,-918.9,0.00017808,2]
[363646720,1748797839800,-430.0,0.00017808,2]
[363646722,1748797839809,-430.0,0.00017808,2]
[363646724,1748797839819,-430.0,0.00017808,2]
[363646726,1748797839828,-430.0,0.00017808,2]
[363646728,1748797839838,-430.0,0.00017808,2]
[363646730,1748797839847,-2076.33,0.00017808,2]
[363646732,1748797839856,-641.66,0.00017808,2]
[363646734,1748797839866,-430.0,0.00017808,2]
[363646736,1748797839875,-733.18,0.00017808,2]
[363646738,1748797839888,-430.0,0.00017808,2]
[363646740,1748797839897,-430.0,0.00017808,2]
[363646742,1748797839907,-1042.82826175,0.00017815,2]
[363646745,1748797839918,-1000.0,0.00017815,2]
[363646747,1748797839927,-711.69068759,0.00017815,2]
[363646748,1748797839937,-3283.61779182,0.00017866,2]
[363646751,1748797839947,-420.0,0.00017944,2]
[363646753,1748797839957,-420.0,0.00017944,2]
[363646755,1748797839966,-420.0,0.00017947,2]
[363646758,1748797839975,-638.79,0.00018004,2]
[363646760,1748797839985,-1293.0,0.00018034,2]
[363646762,1748797839995,-642.99,0.00018082,2]
[363646764,1748797840003,-430.0,0.00018082,2]
[363646766,1748797840013,-430.0,0.00018082,2]
[363646768,1748797840023,-786.52,0.00018082,2]
[363646771,1748797840032,-430.0,0.00018082,2]
[363646773,1748797840042,-430.0,0.00018082,2]
[363646775,1748797840051,-874.47,0.00018082,2]
[363646777,1748797840060,-430.0,0.00018082,2]
[363646779,1748797840069,-430.0,0.00018082,2]
[363646783,1748797840080,-430.0,0.00018082,2]
[363646787,1748797840089,-918.9,0.00018082,2]
[363646789,1748797840099,-430.0,0.00018082,2]
[363646791,1748797840109,-430.0,0.00018082,2]
[363646793,1748797840119,-501.43384318,0.00018082,2]
[363646795,1748797840128,-430.0,0.00018082,2]
[363646797,1748797840138,-430.0,0.00018082,2]
[363646799,1748797840147,-2076.33,0.00018082,2]
[363646801,1748797840157,-641.66,0.00018082,2]
[363646803,1748797840166,-430.0,0.00018082,2]
[363646805,1748797840178,-733.18,0.00018082,2]
[363646807,1748797840188,-430.0,0.00018082,2]
[363646809,1748797840198,-430.0,0.00018082,2]
[363646811,1748797840207,-3283.61779182,0.00018107,2]
[363646813,1748797840216,-500.0,0.00018116,2]
[363646815,1748797840226,-3341.85567453,0.00018209,2]
[363646817,1748797840236,-3283.61779182,0.00018348,2]
[363646819,1748797840245,-642.99,0.00018356,2]
[363646821,1748797840255,-430.0,0.00018356,2]
[363646823,1748797840265,-430.0,0.00018356,2]
[363646825,1748797840274,-786.52,0.00018356,2]
[363646827,1748797840283,-430.0,0.00018356,2]
[363646829,1748797840292,-430.0,0.00018356,2]
[363646831,1748797840302,-874.47,0.00018356,2]
[363646833,1748797840311,-430.0,0.00018356,2]
[363646835,1748797840321,-430.0,0.00018356,2]
[363646837,1748797840330,-430.0,0.00018356,2]
[363646839,1748797840340,-918.9,0.00018356,2]
[363646841,1748797840350,-430.0,0.00018356,2]
[363646843,1748797840360,-430.0,0.00018356,2]
[363646845,1748797840369,-430.0,0.00018356,2]
[363646847,1748797840380,-430.0,0.00018356,2]
[363646849,1748797840389,-2076.33,0.00018356,2]
[363646851,1748797840400,-641.66,0.00018356,2]
[363646853,1748797840410,-430.0,0.00018356,2]
[363646855,1748797840420,-733.18,0.00018356,2]
[363646857,1748797840429,-430.0,0.00018356,2]
[363646859,1748797840439,-430.0,0.00018356,2]
[363646861,1748797840448,-500.0,0.00018363,2]
[363646863,1748797840457,-160.0,0.00018411,2]
[363646865,1748797840466,-160.0,0.00018411,2]
[363646867,1748797840475,-423.51412927,0.00018411,2]
[363646869,1748797840485,-229.3709046,0.00018411,2]
[363646871,1748797840494,-165.42858455,0.00018446,2]
[363646873,1748797840503,-3283.61779182,0.0001859,2]
[363646875,1748797840516,-642.99,0.0001863,2]
[363646877,1748797840526,-430.0,0.0001863,2]
[363646879,1748797840536,-430.0,0.0001863,2]
[363646882,1748797840547,-786.52,0.0001863,2]
[363646883,1748797840557,-430.0,0.0001863,2]
[363646885,1748797840567,-430.0,0.0001863,2]
[363646887,1748797840576,-874.47,0.0001863,2]
[363646890,1748797840586,-430.0,0.0001863,2]
[363646891,1748797840597,-430.0,0.0001863,2]
[363646894,1748797840606,-430.0,0.0001863,2]
[363646896,1748797840615,-918.9,0.0001863,2]
[363646898,1748797840625,-430.0,0.0001863,2]
[363646899,1748797840635,-430.0,0.0001863,2]
[363646902,1748797840644,-430.0,0.0001863,2]
[363646904,1748797840654,-430.0,0.0001863,2]
[363646906,1748797840664,-2076.33,0.0001863,2]
[363646908,1748797840677,-641.66,0.0001863,2]
[363646910,1748797840688,-430.0,0.0001863,2]
[363646912,1748797840697,-733.18,0.0001863,2]
[363646914,1748797840707,-430.0,0.0001863,2]
[363646916,1748797840716,-430.0,0.0001863,2]
[363646918,1748797840725,-3283.61779182,0.00018831,2]
[363646920,1748797840734,-642.99,0.00018904,2]
[363646922,1748797840743,-430.0,0.00018904,2]
[363646924,1748797840753,-430.0,0.00018904,2]
[363646926,1748797840763,-786.52,0.00018904,2]
[363646928,1748797840772,-430.0,0.00018904,2]
[363646930,1748797840782,-430.0,0.00018904,2]
[363646932,1748797840791,-874.47,0.00018904,2]
[363646934,1748797840801,-430.0,0.00018904,2]
[363646936,1748797840811,-430.0,0.00018904,2]
[363646938,1748797840821,-430.0,0.00018904,2]
[363646940,1748797840830,-918.9,0.00018904,2]
[363646942,1748797840839,-430.0,0.00018904,2]
[363646944,1748797840849,-430.0,0.00018904,2]
[363646946,1748797840858,-430.0,0.00018904,2]
[363646948,1748797840868,-430.0,0.00018904,2]
[363646950,1748797840877,-2076.33,0.00018904,2]
[363646952,1748797840887,-641.66,0.00018904,2]
[363646954,1748797840896,-430.0,0.00018904,2]
[363646956,1748797840906,-733.18,0.00018904,2]
[363646970,1748797841023,-430.0,0.00018904,2]
[363646972,1748797841034,-430.0,0.00018904,2]
[363646974,1748797841043,-3283.61779182,0.00019072,2]
[363646976,1748797841053,-160.0,0.00019177,2]
[363646978,1748797841063,-642.99,0.00019178,2]
[363646980,1748797841072,-500.0,0.00019178,2]
[363646982,1748797841081,-500.0,0.00019178,2]
[363646984,1748797841091,-500.0,0.00019178,2]
[363646986,1748797841099,-500.0,0.00019178,2]
[363646988,1748797841109,-500.0,0.00019178,2]
[363646990,1748797841118,-500.0,0.00019178,2]
[363646992,1748797841127,-500.0,0.00019178,2]
[363646994,1748797841136,-500.0,0.00019178,2]
[363646996,1748797841146,-500.0,0.00019178,2]
[363646998,1748797841155,-500.0,0.00019178,2]
[363647000,1748797841164,-500.0,0.00019178,2]
[363647002,1748797841177,-252.29578035,0.00019178,2]
[363647004,1748797841187,-430.0,0.00019178,2]
[363647006,1748797841197,-786.52,0.00019178,2]
[363647008,1748797841206,-500.0,0.00019178,2]
[363647010,1748797841216,-500.0,0.00019178,2]
[363647012,1748797841225,-500.0,0.00019178,2]
[363647014,1748797841234,-622.02348749,0.00019178,2]
[363647016,1748797841244,-500.0,0.00019178,2]
[363647018,1748797841253,-500.0,0.00019178,2]
[363647020,1748797841262,-430.0,0.00019178,2]
[363647022,1748797841272,-470.07295285,0.00019178,2]
[363647024,1748797841281,-874.47,0.00019178,2]
[363647026,1748797841291,-430.0,0.00019178,2]
[363647028,1748797841300,-430.0,0.00019178,2]
[363647030,1748797841310,-430.0,0.00019178,2]
[363647032,1748797841319,-918.9,0.00019178,2]
[363647034,1748797841329,-500.0,0.00019178,2]
[363647036,1748797841338,-500.0,0.00019178,2]
[363647038,1748797841348,-500.0,0.00019178,2]
[363647040,1748797841358,-500.0,0.00019178,2]
[363647042,1748797841366,-500.0,0.00019178,2]
[363647044,1748797841376,-472.00422925,0.00019178,2]
[363647046,1748797841385,-500.0,0.00019178,2]
[363647048,1748797841394,-430.0,0.00019178,2]
[363647050,1748797841404,-430.0,0.00019178,2]
[363647052,1748797841414,-430.0,0.00019178,2]
[363647054,1748797841425,-430.0,0.00019178,2]
[363647056,1748797841435,-2076.33,0.00019178,2]
[363647058,1748797841444,-641.66,0.00019178,2]
[363647060,1748797841454,-430.0,0.00019178,2]
[363647062,1748797841463,-733.18,0.00019178,2]
[363647064,1748797841472,-430.0,0.00019178,2]
[363647066,1748797841482,-430.0,0.00019178,2]
[363647068,1748797841491,-151.0,0.00019178,2]
[363647070,1748797841500,-173.899305,0.00019178,2]
[363647072,1748797841511,-156.587,0.00019233,2]
[363647074,1748797841523,-162.380719,0.00019288,2]
[363647076,1748797841532,-3283.61779182,0.00019314,2]
[363647079,1748797841544,-168.3888056,0.00019343,2]
[363647081,1748797841559,-174.61919141,0.00019398,2]
[363647083,1748797841568,-642.99,0.00019452,2]
[363647085,1748797841578,-430.0,0.00019452,2]
[363647087,1748797841588,-786.52,0.00019452,2]
[363647089,1748797841598,-430.0,0.00019452,2]
[363647091,1748797841607,-874.47,0.00019452,2]
[363647093,1748797841616,-430.0,0.00019452,2]
[363647095,1748797841626,-430.0,0.00019452,2]
[363647097,1748797841635,-430.0,0.00019452,2]
[363647099,1748797841645,-918.9,0.00019452,2]
[363647101,1748797841654,-430.0,0.00019452,2]
[363647103,1748797841664,-430.0,0.00019452,2]
[363647105,1748797841676,-387.04,0.00019452,2]
[363647107,1748797841686,-430.0,0.00019452,2]
[363647109,1748797841696,-2076.33,0.00019452,2]
[363647111,1748797841705,-641.66,0.00019452,2]
[363647113,1748797841715,-430.0,0.00019452,2]
[363647115,1748797841724,-733.18,0.00019452,2]
[363647117,1748797841733,-430.0,0.00019452,2]
[363647118,1748797841743,-430.0,0.00019452,2]
[363647119,1748797841752,-181.08010149,0.00019453,2]
[363647121,1748797841762,-187.78006525,0.00019508,2]
[363647122,1748797841771,-165.42858455,0.00019508,2]
[363647123,1748797841780,-3283.61779182,0.00019555,2]
[363647124,1748797841789,-194.72792766,0.00019563,2]
[363647125,1748797841799,-231.523,0.00019591,2]
[363647126,1748797841808,-587.0,0.00019611,2]
[363647127,1748797841818,-587.0,0.00019613,2]
[363647128,1748797841827,-201.93286099,0.00019618,2]
[363647129,1748797841837,-1277.58,0.00019641,2]
[363647130,1748797841846,-209.40437684,0.00019673,2]
[363647131,1748797841855,-642.99,0.00019726,2]
[363647132,1748797841866,-430.0,0.00019726,2]
[363647133,1748797841876,-786.52,0.00019726,2]
[363647134,1748797841886,-430.0,0.00019726,2]
[363647135,1748797841897,-874.47,0.00019726,2]
[363647136,1748797841906,-430.0,0.00019726,2]
[363647137,1748797841916,-430.0,0.00019726,2]
[363647138,1748797841926,-430.0,0.00019726,2]
[363647139,1748797841936,-918.9,0.00019726,2]
[363647140,1748797841946,-430.0,0.00019726,2]
[363647141,1748797841958,-430.0,0.00019726,2]
[363647142,1748797841969,-430.0,0.00019726,2]
[363647143,1748797841979,-2076.33,0.00019726,2]
[363647144,1748797841988,-641.66,0.00019726,2]
[363647145,1748797841998,-430.0,0.00019726,2]
[363647146,1748797842008,-733.18,0.00019726,2]
[363647148,1748797842018,-430.0,0.00019726,2]
[363647150,1748797842027,-430.0,0.00019726,2]
[363647152,1748797842038,-217.15233878,0.00019728,2]
[363647154,1748797842048,-225.18697532,0.00019783,2]
[363647156,1748797842057,-3283.61779182,0.00019797,2]
[363647158,1748797842066,-3341.85567453,0.00019806,2]
[363647160,1748797842075,-192.43550653,0.00019838,2]
[363647162,1748797842084,-642.99,0.0002,2]
[363647164,1748797842094,-430.0,0.0002,2]
[363647166,1748797842103,-786.52,0.0002,2]
[363647168,1748797842113,-430.0,0.0002,2]
[363647170,1748797842122,-874.47,0.0002,2]
[363647172,1748797842131,-211.28,0.0002,2]
[363647174,1748797842141,-307.72122629,0.0002,2]
[363647176,1748797842151,-918.9,0.0002,2]
[363647178,1748797842161,-430.0,0.0002,2]
[363647180,1748797842173,-430.0,0.0002,2]
[363647182,1748797842182,-430.0,0.0002,2]
[363647184,1748797842191,-2076.33,0.0002,2]
[363647186,1748797842201,-641.66,0.0002,2]
[363647188,1748797842211,-430.0,0.0002,2]
[363647190,1748797842220,-733.18,0.0002,2]
[363647192,1748797842230,-193.30573625,0.0002,2]
[363647194,1748797842239,-430.0,0.0002,2]
[363647196,1748797842250,-430.0,0.0002,2]
[363647198,1748797842259,-3283.61779182,0.00020038,2]
[363647200,1748797842269,-500.0,0.00020067,2]
[363647203,1748797842279,-187.686923,0.00020187,2]
[363647205,1748797842288,-151.0,0.000202,4]
[363647207,1748797842298,-642.99,0.00020273,2]
[363647209,1748797842309,-430.0,0.00020273,2]
[363647211,1748797842318,-786.52,0.00020273,2]
[363647213,1748797842327,-430.0,0.00020273,2]
[363647215,1748797842336,-874.47,0.00020273,2]
[363647217,1748797842345,-918.9,0.00020273,2]
[363647218,1748797842354,-430.0,0.00020273,2]
[363647220,1748797842364,-333.69261158,0.00020273,2]
[363647223,1748797842374,-430.0,0.00020273,2]
[363647225,1748797842383,-2076.33,0.00020273,2]
[363647226,1748797842392,-641.66,0.00020273,2]
[363647228,1748797842402,-430.0,0.00020273,2]
[363647230,1748797842411,-733.18,0.00020273,2]
[363647233,1748797842424,-430.0,0.00020273,2]
[363647234,1748797842434,-3283.61779182,0.00020279,3]
[363647236,1748797842443,-3283.61779182,0.00020521,3]
[363647238,1748797842453,-642.99,0.00020547,2]
[363647240,1748797842462,-430.0,0.00020547,2]
[363647242,1748797842472,-786.52,0.00020547,2]
[363647245,1748797842482,-430.0,0.00020547,2]
[363647247,1748797842491,-874.47,0.00020547,2]
[363647249,1748797842501,-918.9,0.00020547,2]
[363647251,1748797842512,-430.0,0.00020547,2]
[363647253,1748797842523,-430.0,0.00020547,2]
[363647255,1748797842533,-2076.33,0.00020547,2]
[363647257,1748797842543,-641.66,0.00020547,2]
[363647259,1748797842553,-430.0,0.00020547,2]
[363647261,1748797842565,-733.18,0.00020547,2]
[363647263,1748797842574,-160.0,0.00020547,2]
[363647265,1748797842584,-430.0,0.00020547,2]
[363647267,1748797842595,-165.42858455,0.00020571,2]
[363647269,1748797842604,-250.55,0.000206,2]
[363647271,1748797842614,-3183.3,0.000206,2]
[363647273,1748797842623,-500.0,0.00020744,2]
[363647275,1748797842632,-3283.61779182,0.00020762,3]
[363647277,1748797842642,-642.99,0.00020821,2]
[363647279,1748797842652,-386.65494419,0.00020821,2]